[Event "7th Leer Open-A 2024"]
[Site "Leer"]
[Date "2024.10.31"]
[Round "1.10"]
[White "Wolf, Pablo"]
[Black "Schulze, Lara"]
[Result "0-1"]
[ECO "C26"]
[WhiteElo "2000"]
[BlackElo "2275"]
[Annotator "RC"]
[PlyCount "30"]
[EventDate "2024.10.14"]
[EventType "swiss"]
[EventCountry "GER"]
[SourceTitle "playchess.com"]
[Source "ChessBase"]
[SourceQuality "1"]
[TimeControl "40/5400+30:900+30"]

1. e4 {[%emt 0:00:04]} e5 {[%emt 0:00:59]} 2. Nc3 {[%emt 0:00:18]} Nf6 {[%emt 0:00:14]} 3. Nge2 {[%emt 0:06:13]} Bc5 {[%emt 0:03:33]} 4. h3 {[%emt 0:00:46]} c6 {[%emt 0:04:26]} 5. d4 {[%emt 0:01:54]} exd4 {[%emt 0:01:30]} 6. Nxd4 {[%emt 0:00:11]} O-O {[%emt 0:02:54]} 7. Be3 {[%emt 0:10:02]} Re8 {[%emt 0:01:52]} 8. Nxc6 {[%emt 0:07:16]} Nxc6 {[%emt 0:04:22]} 9. Bxc5 {[%emt 0:01:15]} d5 {[%emt 0:04:08]} 10. Bb5 {[%emt 0:07:51]} Nxe4 {[%emt 0:06:02]} 11. Be3 {[%emt 0:10:27]} Nxc3 {[%emt 0:24:20]} 12. bxc3 {[%emt 0:00:39]} Qa5 {[%emt 0:00:21]} 13. Bxc6 {[%emt 0:05:39]} Qxc3+ {[%emt 0:00:28]} 14. Kf1 {[%emt 0:00:01]} bxc6 {[%emt 0:00:18]} 15. Rb1 {[%emt 0:00:14]} Bf5 {[%emt 0:01:55]} 0-1

[Event "7th Leer Open-A 2024"]
[Site "Leer"]
[Date "2024.10.31"]
[Round "1.11"]
[White "Ngo, Quang Thai"]
[Black "Noennig, Jakob"]
[Result "1-0"]
[ECO "D37"]
[WhiteElo "2195"]
[BlackElo "1986"]
[Annotator "RC"]
[PlyCount "77"]
[EventDate "2024.10.14"]
[EventType "swiss"]
[EventCountry "GER"]
[SourceTitle "playchess.com"]
[Source "ChessBase"]
[SourceQuality "1"]
[TimeControl "40/5400+30:900+30"]

1. c4 {[%emt 0:01:30]} e6 {[%emt 0:00:10]} 2. d4 {[%emt 0:01:07]} d5 {[%emt 0:00:07]} 3. Nf3 {[%emt 0:00:05]} Nf6 {[%emt 0:00:12]} 4. Nc3 {[%emt 0:00:15]} Be7 {[%emt 0:01:15]} 5. Bf4 {[%emt 0:00:15]} O-O {[%emt 0:01:21]} 6. e3 {[%emt 0:00:11]} b6 {[%emt 0:05:08]} 7. Bd3 {[%emt 0:00:20]} dxc4 {[%emt 0:00:29]} 8. Bxc4 {[%emt 0:00:05]} Bb7 {[%emt 0:01:43]} 9. O-O {[%emt 0:00:28]} Nbd7 {[%emt 0:10:29]} 10. Qe2 {[%emt 0:08:50]} Nh5 {[%emt 0:08:03]} 11. Be5 {[%emt 0:01:39]} Nxe5 {[%emt 0:00:30]} 12. dxe5 {[%emt 0:00:05]} g6 {[%emt 0:00:11]} 13. Rfd1 {[%emt 0:01:45]} Qc8 {[%emt 0:01:13]} 14. Bb5 {[%emt 0:06:59]} c6 {[%emt 0:11:46]} 15. Bd3 {[%emt 0:07:05]} Qc7 {[%emt 0:02:05]} 16. Ba6 {[%emt 0:06:58]} Rfd8 {[%emt 0:08:31]} 17. Bxb7 {[%emt 0:03:34]} Qxb7 {[%emt 0:00:02]} 18. Qc4 {[%emt 0:00:22]} b5 {[%emt 0:06:08]} 19. Qe4 {[%emt 0:02:21]} Qb6 {[%emt 0:01:26]} 20. g4 {[%emt 0:01:24]} Ng7 {[%emt 0:00:17]} 21. Qf4 {[%emt 0:00:13]} Rxd1+ {[%emt 0:05:59]} 22. Rxd1 {[%emt 0:00:12]} Rd8 {[%emt 0:00:10]} 23. Rc1 {[%emt 0:08:48]} Rd7 {[%emt 0:04:45]} 24. Ne4 {[%emt 0:04:05]} Ne8 {[%emt 0:01:51]} 25. h4 {[%emt 0:03:23]} c5 {[%emt 0:09:08]} 26. h5 {[%emt 0:18:28]} Qd8 {[%emt 0:01:28]} 27. Kg2 {[%emt 0:02:58]} c4 {[%emt 0:13:04]} 28. Rh1 {[%emt 0:04:39]} Bf8 {[%emt 0:04:59]} 29. hxg6 {[%emt 0:04:47]} fxg6 {[%emt 0:00:05]} 30. Nfg5 {[%emt 0:00:12]} Qb6 {[%emt 0:02:17]} 31. Nxh7 {[%emt 0:04:07]} Bg7 {[%emt 0:00:36]} 32. Nhf6+ {[%emt 0:00:24]} Bxf6 {[%emt 0:00:28]} 33. Nxf6+ {[%emt 0:00:27]} Nxf6 {[%emt 0:00:26]} 34. Qxf6 {[%emt 0:00:06]} Rg7 {[%emt 0:00:33]} 35. Rd1 {[%emt 0:00:25]} Qb7+ {[%emt 0:00:33]} 36. Kg3 {[%emt 0:02:40]} Qe7 {[%emt 0:00:06]} 37. Rd8+ {[%emt 0:02:14]} Kh7 {[%emt 0:00:07]} 38. Rb8 {[%emt 0:01:51]} a6 {[%emt 0:01:16]} 39. Qf3 {[%emt 0:00:00]} 1-0

[Event "7th Leer Open-A 2024"]
[Site "Leer"]
[Date "2024.10.31"]
[Round "1.12"]
[White "Heutling, Elina"]
[Black "Gutman, Lev"]
[Result "0-1"]
[ECO "B95"]
[WhiteElo "1983"]
[BlackElo "2264"]
[Annotator "RC"]
[PlyCount "54"]
[EventDate "2024.10.14"]
[EventType "swiss"]
[EventCountry "GER"]
[SourceTitle "playchess.com"]
[Source "ChessBase"]
[SourceQuality "1"]
[TimeControl "40/5400+30:900+30"]

1. e4 {[%emt 0:00:04]} c5 {[%emt 0:00:23]} 2. Nf3 {[%emt 0:00:07]} d6 {[%emt 0:00:05]} 3. d4 {[%emt 0:00:06]} cxd4 {[%emt 0:00:05]} 4. Nxd4 {[%emt 0:00:05]} Nf6 {[%emt 0:00:04]} 5. Nc3 {[%emt 0:00:07]} a6 {[%emt 0:00:05]} 6. Bg5 {[%emt 0:00:37]} e6 {[%emt 0:00:07]} 7. Qe2 {[%emt 0:00:13]} Qc7 {[%emt 0:01:43]} 8. Bxf6 {[%emt 0:02:04]} gxf6 {[%emt 0:00:02]} 9. O-O-O {[%emt 0:00:18]} Nc6 {[%emt 0:08:34]} 10. f4 {[%emt 0:16:13]} Bd7 {[%emt 0:06:11]} 11. Kb1 {[%emt 0:05:56]} O-O-O {[%emt 0:10:45]} 12. Nf3 {[%emt 0:08:28]} Kb8 {[%emt 0:03:20]} 13. f5 {[%emt 0:09:46]} Ne5 {[%emt 0:02:01]} 14. Nxe5 {[%emt 0:03:53]} dxe5 {[%emt 0:00:17]} 15. Qh5 {[%emt 0:02:58]} Bb4 {[%emt 0:08:34]} 16. Qxf7 {[%emt 0:03:15]} Bxc3 {[%emt 0:00:11]} 17. bxc3 {[%emt 0:00:24]} exf5 {[%emt 0:00:33]} 18. Qxf6 {[%emt 0:10:01]} Bc6 {[%emt 0:00:16]} 19. Bd3 {[%emt 0:01:15]} Rhf8 {[%emt 0:08:31]} 20. Qh4 {[%emt 0:03:35]} Qb6+ {[%emt 0:02:56]} 21. Ka1 {[%emt 0:01:11]} Qc5 {[%emt 0:00:20]} 22. exf5 {[%emt 0:06:22]} Qxc3+ {[%emt 0:07:31]} 23. Kb1 {[%emt 0:00:07]} Rd4 {[%emt 0:00:43]} 24. Qe7 {[%emt 0:07:20]} Re8 {[%emt 0:00:37]} 25. Qxh7 {[%emt 0:01:22]} e4 {[%emt 0:01:57]} 26. Be2 {[%emt 0:05:10]} Rb4+ {[%emt 0:00:36]} 27. Kc1 {[%emt 0:00:02]} e3 {[%emt 0:00:07]} 0-1

[Event "7th Leer Open-A 2024"]
[Site "Leer"]
[Date "2024.10.31"]
[Round "1.13"]
[White "de Voogt, Juergen"]
[Black "Roth, Thorsten"]
[Result "1-0"]
[ECO "A47"]
[WhiteElo "2245"]
[BlackElo "1980"]
[Annotator "RC"]
[PlyCount "55"]
[EventDate "2024.10.14"]
[EventType "swiss"]
[EventCountry "GER"]
[SourceTitle "playchess.com"]
[Source "ChessBase"]
[SourceQuality "1"]
[TimeControl "40/5400+30:900+30"]

1. d4 {[%emt 0:00:03]} d5 {[%emt 0:00:08]} 2. Nf3 {[%emt 0:00:16]} Nf6 {[%emt 0:00:08]} 3. e3 {[%emt 0:00:18]} e6 {[%emt 0:00:36]} 4. Bd3 {[%emt 0:00:26]} b6 {[%emt 0:00:26]} 5. Qe2 {[%emt 0:02:10]} Bb7 {[%emt 0:00:20]} 6. O-O {[%emt 0:00:21]} Bd6 {[%emt 0:01:21]} 7. b3 {[%emt 0:02:01]} O-O {[%emt 0:00:31]} 8. Ne5 {[%emt 0:01:15]} c5 {[%emt 0:01:04]} 9. Bb2 {[%emt 0:00:43]} Nc6 {[%emt 0:01:32]} 10. a3 {[%emt 0:01:44]} Rc8 {[%emt 0:07:46]} 11. Nd2 {[%emt 0:01:02]} Ne7 {[%emt 0:05:09]} 12. f3 {[%emt 0:10:44]} Qc7 {[%emt 0:19:00]} 13. g4 {[%emt 0:05:24]} Ng6 {[%emt 0:13:22]} 14. g5 {[%emt 0:02:17]} Bxe5 {[%emt 0:20:31]} 15. dxe5 {[%emt 0:00:26]} Nd7 {[%emt 0:00:06]} 16. f4 {[%emt 0:01:03]} Rfd8 {[%emt 0:11:00]} 17. Qg4 {[%emt 0:07:33]} Ndf8 {[%emt 0:00:32]} 18. h4 {[%emt 0:10:14]} b5 {[%emt 0:00:40]} 19. b4 {[%emt 0:10:13]} d4 {[%emt 0:12:10]} 20. bxc5 {[%emt 0:04:41]} dxe3 {[%emt 0:00:19]} 21. Ne4 {[%emt 0:02:40]} Bxe4 {[%emt 0:00:11]} 22. Bxe4 {[%emt 0:00:03]} Qxc5 {[%emt 0:00:10]} 23. Rae1 {[%emt 0:03:12]} Rd2 {[%emt 0:00:23]} 24. h5 {[%emt 0:01:50]} Ne7 {[%emt 0:00:24]} 25. Kh1 {[%emt 0:06:42]} Nf5 {[%emt 0:00:22]} 26. Bc1 {[%emt 0:13:56]} Qd4 {[%emt 0:00:24]} 27. Bd3 {[%emt 0:02:23]} Rf2 {[%emt 0:04:37]} 28. Kg1 {[%emt 0:01:30]} 1-0

[Event "7th Leer Open-A 2024"]
[Site "Leer"]
[Date "2024.10.31"]
[Round "1.14"]
[White "Herzwurm, Robert"]
[Black "Wagner, Benjamin"]
[Result "1-0"]
[ECO "C52"]
[WhiteElo "1955"]
[BlackElo "2217"]
[Annotator "RC"]
[PlyCount "69"]
[EventDate "2024.10.14"]
[EventType "swiss"]
[EventCountry "GER"]
[SourceTitle "playchess.com"]
[Source "ChessBase"]
[SourceQuality "1"]
[TimeControl "40/5400+30:900+30"]

1. e4 {[%emt 0:00:02]} e5 {[%emt 0:00:02]} 2. Nf3 {[%emt 0:00:07]} Nc6 {[%emt 0:00:06]} 3. Bc4 {[%emt 0:00:05]} Bc5 {[%emt 0:00:12]} 4. b4 {[%emt 0:00:06]} Bxb4 {[%emt 0:00:09]} 5. c3 {[%emt 0:00:08]} Ba5 {[%emt 0:00:06]} 6. d4 {[%emt 0:00:06]} exd4 {[%emt 0:00:14]} 7. O-O {[%emt 0:00:07]} Nge7 {[%emt 0:00:58]} 8. Ng5 {[%emt 0:00:36]} d5 {[%emt 0:01:07]} 9. exd5 {[%emt 0:00:15]} Ne5 {[%emt 0:00:25]} 10. Qxd4 {[%emt 0:00:36]} f6 {[%emt 0:00:42]} 11. Re1 {[%emt 0:00:46]} Bb6 {[%emt 0:00:57]} 12. Qh4 {[%emt 0:00:54]} Bf5 {[%emt 0:06:53]} 13. Ba3 {[%emt 0:41:44]} Qd7 {[%emt 0:20:23]} 14. Nd2 {[%emt 0:19:08]} N7g6 {[%emt 0:07:44]} 15. Qg3 {[%emt 0:06:55]} O-O-O {[%emt 0:00:47]} 16. Ngf3 {[%emt 0:11:28]} Rhe8 {[%emt 0:24:33]} 17. Nd4 {[%emt 0:07:27]} Bxd4 {[%emt 0:03:33]} 18. cxd4 {[%emt 0:00:17]} Nxc4 {[%emt 0:01:05]} 19. Nxc4 {[%emt 0:00:27]} Qxd5 {[%emt 0:06:03]} 20. Rec1 {[%emt 0:01:55]} Kb8 {[%emt 0:08:45]} 21. Ne3 {[%emt 0:03:44]} Qa5 {[%emt 0:00:21]} 22. Nxf5 {[%emt 0:00:45]} Qxf5 {[%emt 0:00:03]} 23. Qxc7+ {[%emt 0:00:59]} Ka8 {[%emt 0:00:02]} 24. Rab1 {[%emt 0:01:05]} Qe4 {[%emt 0:01:42]} 25. g3 {[%emt 0:01:00]} h5 {[%emt 0:04:41]} 26. Rb5 {[%emt 0:00:57]} h4 {[%emt 0:02:57]} 27. d5 {[%emt 0:01:28]} Rb8 {[%emt 0:00:41]} 28. Ra5 {[%emt 0:00:29]} a6 {[%emt 0:05:29]} 29. Bc5 {[%emt 0:00:31]} Qe2 {[%emt 0:01:26]} 30. Qb6 {[%emt 0:00:15]} Qe1+ {[%emt 0:00:22]} 31. Rxe1 {[%emt 0:00:09]} Rxe1+ {[%emt 0:00:01]} 32. Kg2 {[%emt 0:00:20]} h3+ {[%emt 0:00:01]} 33. Kxh3 {[%emt 0:00:54]} Rh8+ {[%emt 0:00:02]} 34. Kg2 {[%emt 0:00:31]} Kb8 {[%emt 0:00:42]} 35. Bd6+ {[%emt 0:00:12]} 1-0

[Event "7th Leer Open-A 2024"]
[Site "Leer"]
[Date "2024.10.31"]
[Round "1.15"]
[White "Popvasilev, Kaloyan"]
[Black "Mueller-Ludwig, Kristin"]
[Result "0-1"]
[ECO "C00"]
[WhiteElo "2237"]
[BlackElo "1971"]
[Annotator "RC"]
[PlyCount "58"]
[EventDate "2024.10.14"]
[EventType "swiss"]
[EventCountry "GER"]
[SourceTitle "playchess.com"]
[Source "ChessBase"]
[SourceQuality "1"]
[TimeControl "40/5400+30:900+30"]

1. e4 {[%emt 0:00:04]} e6 {[%emt 0:00:07]} 2. d3 {[%emt 0:00:46]} d5 {[%emt 0:00:46]} 3. Qe2 {[%emt 0:00:12]} Be7 {[%emt 0:06:13]} 4. Nf3 {[%emt 0:00:52]} Nf6 {[%emt 0:01:32]} 5. g3 {[%emt 0:00:20]} O-O {[%emt 0:00:22]} 6. Bg2 {[%emt 0:00:10]} c5 {[%emt 0:01:13]} 7. O-O {[%emt 0:00:39]} Nc6 {[%emt 0:00:48]} 8. e5 {[%emt 0:01:32]} Nd7 {[%emt 0:00:09]} 9. c4 {[%emt 0:00:42]} Nb6 {[%emt 0:23:27]} 10. h4 {[%emt 0:13:34]} Rb8 {[%emt 0:18:46]} 11. Bf4 {[%emt 0:06:19]} a6 {[%emt 0:12:33]} 12. Rd1 {[%emt 0:10:52]} Qd7 {[%emt 0:12:38]} 13. Nbd2 {[%emt 0:05:40]} Rd8 {[%emt 0:04:40]} 14. b3 {[%emt 0:06:49]} a5 {[%emt 0:04:41]} 15. Nf1 {[%emt 0:03:30]} Qe8 {[%emt 0:03:09]} 16. Ne3 {[%emt 0:04:05]} Ra8 {[%emt 0:00:59]} 17. Ng4 {[%emt 0:06:51]} a4 {[%emt 0:00:57]} 18. h5 {[%emt 0:00:51]} h6 {[%emt 0:02:43]} 19. Qe3 {[%emt 0:05:48]} Nb4 {[%emt 0:01:38]} 20. Bxh6 {[%emt 0:16:24]} gxh6 {[%emt 0:01:47]} 21. Nxh6+ {[%emt 0:03:52]} Kg7 {[%emt 0:00:21]} 22. Ng5 {[%emt 0:05:29]} Kxh6 {[%emt 0:00:10]} 23. Nxf7+ {[%emt 0:04:46]} Kg7 {[%emt 0:00:05]} 24. h6+ {[%emt 0:01:49]} Kxf7 {[%emt 0:00:38]} 25. Qf4+ {[%emt 0:00:24]} Kg6 {[%emt 0:00:04]} 26. Be4+ {[%emt 0:00:27]} dxe4 {[%emt 0:00:11]} 27. Kg2 {[%emt 0:00:42]} Qf7 {[%emt 0:00:15]} 28. Qg4+ {[%emt 0:00:23]} Kh7 {[%emt 0:00:07]} 29. dxe4 {[%emt 0:00:00]} axb3 {[%emt 0:00:00]} 0-1

[Event "7th Leer Open-A 2024"]
[Site "Leer"]
[Date "2024.10.31"]
[Round "1.16"]
[White "Hans, Julian"]
[Black "Hintze, Helge"]
[Result "0-1"]
[ECO "C01"]
[WhiteElo "1969"]
[BlackElo "2230"]
[Annotator "RC"]
[PlyCount "38"]
[EventDate "2024.10.14"]
[EventType "swiss"]
[EventCountry "GER"]
[SourceTitle "playchess.com"]
[Source "ChessBase"]
[SourceQuality "1"]
[TimeControl "40/5400+30:900+30"]

1. e4 {[%emt 0:00:10]} e6 {[%emt 0:00:07]} 2. d4 {[%emt 0:00:24]} d5 {[%emt 0:00:07]} 3. Bd3 {[%emt 0:00:36]} dxe4 {[%emt 0:01:36]} 4. Bxe4 {[%emt 0:00:15]} Nf6 {[%emt 0:00:10]} 5. Bf3 {[%emt 0:00:10]} c5 {[%emt 0:00:20]} 6. Ne2 {[%emt 0:01:02]} Nc6 {[%emt 0:00:21]} 7. Be3 {[%emt 0:01:15]} cxd4 {[%emt 0:01:37]} 8. Nxd4 {[%emt 0:00:13]} Ne5 {[%emt 0:00:33]} 9. Nc3 {[%emt 0:01:08]} Bb4 {[%emt 0:01:52]} 10. Ndb5 {[%emt 0:04:21]} Qa5 {[%emt 0:05:52]} 11. a3 {[%emt 0:25:29]} Qxb5 {[%emt 0:09:15]} 12. axb4 {[%emt 0:05:32]} Qxb4 {[%emt 0:00:29]} 13. O-O {[%emt 0:01:41]} Bd7 {[%emt 0:05:41]} 14. Na2 {[%emt 0:19:07]} Qxb2 {[%emt 0:11:22]} 15. Bc5 {[%emt 0:06:46]} Nxf3+ {[%emt 0:04:01]} 16. Qxf3 {[%emt 0:01:11]} Bc6 {[%emt 0:00:46]} 17. Qf4 {[%emt 0:04:43]} Nd5 {[%emt 0:09:26]} 18. Qg3 {[%emt 0:09:50]} Qf6 {[%emt 0:05:39]} 19. Rfe1 {[%emt 0:02:23]} Nf4 {[%emt 0:04:19]} 0-1

[Event "7th Leer Open-A 2024"]
[Site "Leer"]
[Date "2024.10.31"]
[Round "1.17"]
[White "Hansch, Karsten"]
[Black "Kirschbaum, Gunnar"]
[Result "1/2-1/2"]
[ECO "C41"]
[WhiteElo "2209"]
[BlackElo "1965"]
[Annotator "RC"]
[PlyCount "84"]
[EventDate "2024.10.14"]
[EventType "swiss"]
[EventCountry "GER"]
[SourceTitle "playchess.com"]
[Source "ChessBase"]
[SourceQuality "1"]
[TimeControl "40/5400+30:900+30"]

1. e4 {[%emt 0:00:04]} d6 {[%emt 0:03:51]} 2. d4 {[%emt 0:00:07]} Nf6 {[%emt 0:00:12]} 3. Nc3 {[%emt 0:00:03]} e5 {[%emt 0:02:07]} 4. Nf3 {[%emt 0:00:05]} Nbd7 {[%emt 0:00:05]} 5. Rg1 {[%emt 0:00:48]} c6 {[%emt 0:01:58]} 6. g4 {[%emt 0:02:27]} Qa5 {[%emt 0:03:24]} 7. Bd2 {[%emt 0:03:03]} Qb6 {[%emt 0:04:57]} 8. g5 {[%emt 0:07:06]} Nh5 {[%emt 0:09:02]} 9. Bd3 {[%emt 0:08:52]} Qxb2 {[%emt 0:21:55]} 10. Rb1 {[%emt 0:24:49]} Qa3 {[%emt 0:00:45]} 11. dxe5 {[%emt 0:00:06]} dxe5 {[%emt 0:00:29]} 12. Nxe5 {[%emt 0:00:08]} Nxe5 {[%emt 0:04:26]} 13. Qxh5 {[%emt 0:00:22]} Be6 {[%emt 0:08:51]} 14. f4 {[%emt 0:04:07]} Nxd3+ {[%emt 0:09:01]} 15. cxd3 {[%emt 0:00:48]} O-O-O {[%emt 0:01:09]} 16. Qe2 {[%emt 0:03:46]} Bb4 {[%emt 0:10:44]} 17. Rc1 {[%emt 0:01:54]} g6 {[%emt 0:06:40]} 18. Kf2 {[%emt 0:01:05]} Kb8 {[%emt 0:02:03]} 19. Rc2 {[%emt 0:00:16]} Qa6 {[%emt 0:02:09]} 20. Rb1 {[%emt 0:01:56]} Bc5+ {[%emt 0:01:42]} 21. Be3 {[%emt 0:00:04]} Bxe3+ {[%emt 0:00:22]} 22. Kxe3 {[%emt 0:00:04]} h6 {[%emt 0:00:33]} 23. Rcb2 {[%emt 0:01:36]} Bc8 {[%emt 0:01:04]} 24. d4 {[%emt 0:00:36]} Qxe2+ {[%emt 0:00:19]} 25. Nxe2 {[%emt 0:00:05]} hxg5 {[%emt 0:00:08]} 26. fxg5 {[%emt 0:00:04]} Rxh2 {[%emt 0:00:15]} 27. Nf4 {[%emt 0:00:05]} Rxb2 {[%emt 0:03:04]} 28. Rxb2 {[%emt 0:40:04]} Rh8 {[%emt 0:00:28]} 29. Rf2 {[%emt 0:00:00]} Rh1 {[%emt 0:00:50]} 30. Nd3 {[%emt 0:00:00]} Rh3+ {[%emt 0:00:53]} 31. Kd2 {[%emt 0:00:00]} Be6 {[%emt 0:00:41]} 32. a4 {[%emt 0:00:00]} Rg3 {[%emt 0:00:27]} 33. Ne5 {[%emt 0:00:00]} Rxg5 {[%emt 0:00:28]} 34. Nxf7 {[%emt 0:00:00]} Bxf7 {[%emt 0:00:48]} 35. Rxf7 {[%emt 0:00:00]} Ra5 {[%emt 0:00:38]} 36. e5 {[%emt 0:00:00]} Kc8 {[%emt 0:01:00]} 37. e6 {[%emt 0:00:00]} Kd8 {[%emt 0:00:10]} 38. Rxb7 {[%emt 0:00:00]} Rxa4 {[%emt 0:00:22]} 39. Kd3 {[%emt 0:00:00]} Ra1 {[%emt 0:00:25]} 40. Rg7 {[%emt 0:00:00]} a5 {[%emt 0:00:38]} 41. Kc4 {[%emt 0:00:00]} Rc1+ {[%emt 0:15:14]} 42. Kb3 {[%emt 0:00:00]} Re1 {[%emt 0:00:00]} 1/2-1/2

[Event "7th Leer Open-A 2024"]
[Site "Leer"]
[Date "2024.10.31"]
[Round "1.18"]
[White "Bundan, Edward"]
[Black "Weidemann, Jakob"]
[Result "0-1"]
[ECO "B85"]
[WhiteElo "1952"]
[BlackElo "2217"]
[Annotator "RC"]
[PlyCount "102"]
[EventDate "2024.10.14"]
[EventType "swiss"]
[EventCountry "GER"]
[SourceTitle "playchess.com"]
[Source "ChessBase"]
[SourceQuality "1"]
[TimeControl "40/5400+30:900+30"]

1. e4 {[%emt 0:00:03]} c5 {[%emt 0:00:08]} 2. Nf3 {[%emt 0:00:08]} e6 {[%emt 0:00:09]} 3. d4 {[%emt 0:00:29]} cxd4 {[%emt 0:00:10]} 4. Nxd4 {[%emt 0:00:13]} Nf6 {[%emt 0:00:11]} 5. Nc3 {[%emt 0:01:11]} Nc6 {[%emt 0:00:09]} 6. a3 {[%emt 0:01:56]} Qc7 {[%emt 0:01:07]} 7. Be3 {[%emt 0:01:23]} a6 {[%emt 0:01:08]} 8. Be2 {[%emt 0:00:39]} Be7 {[%emt 0:00:14]} 9. O-O {[%emt 0:00:32]} d6 {[%emt 0:00:26]} 10. f4 {[%emt 0:02:39]} O-O {[%emt 0:03:59]} 11. Kh1 {[%emt 0:02:48]} Bd7 {[%emt 0:05:29]} 12. Bf3 {[%emt 0:02:11]} Rac8 {[%emt 0:00:37]} 13. Nb3 {[%emt 0:07:10]} b5 {[%emt 0:00:22]} 14. g4 {[%emt 0:05:53]} Be8 {[%emt 0:03:28]} 15. g5 {[%emt 0:05:34]} Nd7 {[%emt 0:00:10]} 16. Bg2 {[%emt 0:03:30]} Nc5 {[%emt 0:03:27]} 17. Nxc5 {[%emt 0:04:30]} dxc5 {[%emt 0:00:10]} 18. Qg4 {[%emt 0:04:52]} Nd4 {[%emt 0:01:16]} 19. Rac1 {[%emt 0:01:50]} Bc6 {[%emt 0:02:52]} 20. Ne2 {[%emt 0:07:57]} Rfd8 {[%emt 0:01:43]} 21. Ng3 {[%emt 0:11:57]} Qb7 {[%emt 0:10:21]} 22. c3 {[%emt 0:05:11]} Nb3 {[%emt 0:00:14]} 23. Rcd1 {[%emt 0:00:49]} Na5 {[%emt 0:00:43]} 24. f5 {[%emt 0:03:39]} Nc4 {[%emt 0:01:26]} 25. Bc1 {[%emt 0:01:28]} Ne5 {[%emt 0:02:43]} 26. Qf4 {[%emt 0:04:25]} Nd3 {[%emt 0:04:59]} 27. Qe3 {[%emt 0:07:11]} c4 {[%emt 0:19:25]} 28. b4 {[%emt 0:03:24]} Nxc1 {[%emt 0:00:49]} 29. Rxc1 {[%emt 0:01:14]} Rd3 {[%emt 0:00:43]} 30. Qf4 {[%emt 0:02:53]} Bd6 {[%emt 0:00:16]} 31. Qg4 {[%emt 0:00:51]} Bxg3 {[%emt 0:00:11]} 32. fxe6 {[%emt 0:01:04]} Bd6 {[%emt 0:10:36]} 33. Rxf7 {[%emt 0:00:50]} Be7 {[%emt 0:00:43]} 34. g6 {[%emt 0:00:53]} h6 {[%emt 0:01:52]} 35. Qf5 {[%emt 0:01:15]} Rf8 {[%emt 0:04:34]} 36. Rf1 {[%emt 0:01:23]} Rdd8 {[%emt 0:01:25]} 37. Qe5 {[%emt 0:00:57]} Rxf7 {[%emt 0:00:38]} 38. gxf7+ {[%emt 0:02:01]} Kh8 {[%emt 0:00:30]} 39. Qf5 {[%emt 0:02:08]} Bf8 {[%emt 0:02:53]} 40. Qg6 {[%emt 0:00:50]} Qe7 {[%emt 0:04:36]} 41. Bh3 {[%emt 0:04:05]} Qg5 {[%emt 0:02:10]} 42. Qxg5 {[%emt 0:00:56]} hxg5 {[%emt 0:00:39]} 43. Bf5 {[%emt 0:00:39]} g6 {[%emt 0:01:06]} 44. Bxg6 {[%emt 0:00:53]} Kg7 {[%emt 0:00:38]} 45. Bf5 {[%emt 0:00:41]} Rd3 {[%emt 0:02:20]} 46. Rg1 {[%emt 0:01:51]} Rxc3 {[%emt 0:01:21]} 47. Rxg5+ {[%emt 0:00:45]} Kf6 {[%emt 0:00:39]} 48. Rg8 {[%emt 0:02:53]} Ke7 {[%emt 0:23:45]} 49. h4 {[%emt 0:02:10]} Re3 {[%emt 0:00:00]} 50. h5 {[%emt 0:01:11]} Bxe4+ {[%emt 0:00:00]} 51. Bxe4 {[%emt 0:00:38]} Rxe4 {[%emt 0:00:00]} 0-1

[Event "7th Leer Open-A 2024"]
[Site "Leer"]
[Date "2024.10.31"]
[Round "1.19"]
[White "Keyser, Robin"]
[Black "Thomas, Jeremy"]
[Result "1-0"]
[ECO "D78"]
[WhiteElo "2225"]
[BlackElo "1948"]
[Annotator "RC"]
[PlyCount "67"]
[EventDate "2024.10.14"]
[EventType "swiss"]
[EventCountry "GER"]
[SourceTitle "playchess.com"]
[Source "ChessBase"]
[SourceQuality "1"]
[TimeControl "40/5400+30:900+30"]

1. d4 {[%emt 0:00:03]} Nf6 {[%emt 0:00:05]} 2. c4 {[%emt 0:00:04]} g6 {[%emt 0:00:04]} 3. Nf3 {[%emt 0:00:05]} Bg7 {[%emt 0:00:06]} 4. g3 {[%emt 0:00:05]} O-O {[%emt 0:00:07]} 5. Bg2 {[%emt 0:00:03]} c6 {[%emt 0:00:09]} 6. O-O {[%emt 0:00:19]} d5 {[%emt 0:00:03]} 7. Qb3 {[%emt 0:00:19]} dxc4 {[%emt 0:08:08]} 8. Qxc4 {[%emt 0:00:07]} Nbd7 {[%emt 0:00:39]} 9. Nc3 {[%emt 0:00:27]} Nb6 {[%emt 0:00:39]} 10. Qd3 {[%emt 0:00:44]} Nbd5 {[%emt 0:09:58]} 11. e4 {[%emt 0:00:54]} Nb4 {[%emt 0:06:13]} 12. Qe2 {[%emt 0:04:12]} b6 {[%emt 0:04:11]} 13. Rd1 {[%emt 0:03:33]} Ba6 {[%emt 0:04:58]} 14. Qd2 {[%emt 0:00:39]} Nd3 {[%emt 0:06:50]} 15. Bf1 {[%emt 0:01:19]} Nb4 {[%emt 0:01:29]} 16. Bxa6 {[%emt 0:06:29]} Nxa6 {[%emt 0:00:01]} 17. Qe2 {[%emt 0:02:05]} Nc7 {[%emt 0:03:17]} 18. Ne5 {[%emt 0:07:25]} Qd6 {[%emt 0:04:21]} 19. Qc4 {[%emt 0:11:14]} c5 {[%emt 0:07:43]} 20. Bf4 {[%emt 0:08:14]} Qe6 {[%emt 0:00:27]} 21. dxc5 {[%emt 0:04:52]} Qxc4 {[%emt 0:02:37]} 22. Nxc4 {[%emt 0:00:07]} b5 {[%emt 0:01:24]} 23. Na5 {[%emt 0:23:42]} b4 {[%emt 0:00:34]} 24. Nd5 {[%emt 0:00:53]} Nfxd5 {[%emt 0:01:29]} 25. exd5 {[%emt 0:00:08]} Na6 {[%emt 0:00:10]} 26. Nc6 {[%emt 0:06:49]} Rfe8 {[%emt 0:03:10]} 27. d6 {[%emt 0:01:26]} Nxc5 {[%emt 0:11:23]} 28. d7 {[%emt 0:01:05]} Red8 {[%emt 0:00:14]} 29. Nxd8 {[%emt 0:00:08]} Rxd8 {[%emt 0:00:01]} 30. Rac1 {[%emt 0:00:24]} Rxd7 {[%emt 0:00:19]} 31. Rxd7 {[%emt 0:00:06]} Nxd7 {[%emt 0:00:01]} 32. Rc8+ {[%emt 0:00:12]} Nf8 {[%emt 0:00:19]} 33. b3 {[%emt 0:00:34]} f5 {[%emt 0:01:12]} 34. Bd2 {[%emt 0:00:31]} 1-0